Cogmind - Beta 17 @@@ ROGUE MODE // 2026.07.08 @ 23:52:14 Player: mmmmcheese Result: Destroyed by QN-X54(R) with Subdweller Laser Performance ------------- Evolutions (0) 0 Regions Visited (2) 400 Robots Destroyed (25) 125 Value Destroyed (613) 613 Prototype IDs (0) 0 Alien Tech Used (0) 0 Bonus (0) 0 TOTAL SCORE: 1138 Bonus ------- None Cogmind --------- Core Integrity 0/250 Matter 282/300 Energy 125/125 System Corruption 0% Temperature Cool (6) Movement Treading (160) Location -10/Subcaves Parts ------- > --- POWER (1) -------- Light Ion Engine > --- PROPULSION (2) --- Light Treads > --- UTILITY (2) ------ Small Storage Unit > --- WEAPON (2) ------- Light Assault Rifle > --- INVENTORY (8) ---- Wheel Wheel Heat Sink High-capacity Storage Unit Medium Matter Pod (27) Hacking Suite Hacking Suite Hammer Peak State ------------ > --- POWER ------------ Ion Engine > --- PROPULSION ------- Light Treads Light Treads > --- UTILITY ---------- Heat Sink Small Storage Unit > --- WEAPON ----------- Medium Laser Beam Cannon > --- INVENTORY -------- Light Ion Engine Wheel Wheel Heat Sink Medium Matter Pod Hacking Suite Light Assault Rifle Hammer [Rating: 8] Favorites ----------- Power Ion Engine Engine Ion Engine Propulsion Light Treads Treads Light Treads Utility Heat Sink Device Heat Sink Storage Small Storage Unit Weapon Medium Laser Energy Gun Medium Laser Energy Cannon Beam Cannon Ballistic Gun Assault Rifle Build | -11 -10 -10 ------- Run | Yrd Mat Sub Slots Evolved . | . . . Power . | . . . Propulsion . | . . . Utility . | . . . Weapon . | . . . Parts Attached 12 | 6 6 . Power 2 | 2 . . Engine 2 | 2 . . Core . | . . . Reactor . | . . . Propulsion 2 | 2 . . Treads 2 | 2 . . Leg . | . . . Wheel . | . . . Hover . | . . . Flight . | . . . Utility 3 | . 3 . Device 2 | . 2 . Storage 1 | . 1 . Processor . | . . . Hackware . | . . . Protection . | . . . Artifact . | . . . Weapon 5 | 2 3 . Energy Gun 2 | 1 1 . Energy Cannon 1 | . 1 . Ballistic Gun 2 | 1 1 . Ballistic Cannon . | . . . Launcher . | . . . Special Weapon . | . . . Impact Weapon . | . . . Slashing Weapon . | . . . Piercing Weapon . | . . . Special Melee Weapon . | . . . Unidentified Prototypes . | . . . Parts Lost 4 | . 1 3 Power . | . . . Propulsion 1 | . . 1 Utility 1 | . . 1 Weapon 2 | . 1 1 Highest Loss Streak 3 | . 1 3 To Critical Strikes . | . . . Average Backups 5 | 3 5 8 Power . | . . . Propulsion 1 | 1 2 2 Utility 2 | . 1 5 Weapon 1 | . 1 1 Tool/Special . | . . . Unused Backups 6 | . . 6 Power . | . . . Propulsion 2 | . . 2 Utility 3 | . . 3 Weapon 1 | . . 1 Tool/Special . | . . . Average Slot Usage (%) 93 | . 93 95 Engine 13 | . 13 14 Treads 27 | . 27 25 Device 12 | . 12 12 Storage 11 | . 11 14 Energy Gun 13 | . 13 13 Energy Cannon 2 | . 3 . Ballistic Gun 9 | . 8 14 Peak Build Rating 8 | 5 8 8 Average Rating 6 | 3 6 7 On Entrance 4 | . 5 8 Avg Prop Armor Cover (%) . | . . . Naked Turns . | . . . Heaviest Build 16 | 9 16 12 Greatest Support 40 | 40 40 40 Greatest Overweight (x) . | . . . Average Overweight (x) . | . . . Largest Inventory Capacity 8 | 5 8 8 Average Capacity 7 | 5 7 8 Most Carried 8 | 5 8 8 Average Carried 5 | 3 5 8 Final Capacity 8 | 5 8 8 Final Carried 8 | 5 8 8 Class Distribution -------------------- 100% | Mutant Dominant Class ---------------- Mutant | -10/Materials Mutant | -10/Subcaves Resources | -11 -10 -10 ----------- Run | Yrd Mat Sub Matter Collected 525 | 225 300 . Remotely . | . . . Salvage Created 730 | 12 718 . Parts 36 | . 36 . Haulers Intercepted 1 | . 1 . Recyclers Shooed 1 | . 1 . Parts Field Recycled . | . . . Retrieved Matter . | . . . Parts Self-Destructed . | . . . Prevented . | . . . Parts Restored . | . . . Kills | -11 -10 -10 ------- Run | Yrd Mat Sub Combat Hostiles Destroyed 18 | . 18 . Guns 13 | . 13 . Cannons 3 | . 3 . AOE 2 | . 2 . Classes Destroyed 7 | 1 6 . Tunneler 1 | 1 . . Hauler 1 | . 1 . Recycler 2 | . 2 . Operator 2 | . 2 . Watcher 1 | . 1 . Swarmer 6 | . 6 . Grunt 12 | . 12 . Best Kill Streak 6 | 1 6 . Combat Bots Only 4 | . 4 . Max Kills in Single Turn 5 | 1 5 . Gunslinging . | . . . Exploded 2 | . 2 . Melee . | . . . Uniques/NPCs Destroyed . | . . . Combat | -11 -10 -10 -------- Run | Yrd Mat Sub Hostile Shots Fired 110 | . 88 22 Missed 36 | . 33 3 Hits 74 | . 55 19 Projectile 74 | . 55 19 Critical Strikes 1 | . 1 . Damage Taken 965 | . 588 377 Core 256 | . 132 124 Absorbed by Shields . | . . . Core Remaining (%) 100 | 100 . . Volleys Fired 76 | 6 60 10 Largest 2 | 2 2 2 Hottest 110 | 70 110 70 Shots Fired 149 | 12 119 18 Gun 141 | 12 111 18 Cannon 8 | . 8 . Launcher . | . . . Special . | . . . Kinetic 68 | 6 52 10 Thermal 81 | 6 67 8 Explosive . | . . . Electromagnetic . | . . . Robot Hit Streak 25 | 6 25 5 Robot Miss Streak 4 | 1 4 2 Penetration Max . | . . . Secondary Targets . | . . . Shots Hit Robots 106 | 9 83 14 Core Hits 40 | 1 37 2 Critical Kills 1 | . 1 . Critical Parts Destroyed . | . . . Critical Strikes 5 | 1 3 1 Burn 4 | 1 2 1 Destroy 1 | . 1 . Melee Attacks . | . . . Impact . | . . . Slashing . | . . . Piercing . | . . . Sneak Attacks . | . . . Combat Hostiles . | . . . Follow-up Attacks . | . . . Damage Inflicted 2043 | 111 1790 142 Guns 1212 | 111 959 142 Cannons 87 | . 87 . Explosions 744 | . 744 . Melee . | . . . Ramming . | . . . Kinetic 641 | 47 526 68 Thermal 658 | 64 520 74 Explosive 744 | . 744 . Electromagnetic . | . . . Impact . | . . . Slashing . | . . . Piercing . | . . . Highest Corruption . | . . . Average Corruption . | . . . Corruption Purged . | . . . Corruption Blocked . | . . . Overload Shots . | . . . Overflow Damage 127 | . 127 . Projectiles . | . . . Explosions 127 | . 127 . Melee . | . . . Knockbacks . | . . . Impact . | . . . Kinetic . | . . . Secondary . | . . . Self-Inflicted Damage . | . . . Shots . | . . . Rammed 1 | . 1 . Targets Rammed 1 | . 1 . Kicked . | . . . Crushed . | . . . Highest Temperature 153 | 54 153 1 Average Temperature 41 | 28 43 1 Received Heat Transfer 393 | . 279 114 Siege Activations . | . . . Martial Activations . | . . . Shielding Activations . | . . . Robots Disrupted . | . . . Combat Hostiles . | . . . Robots Corrupted . | . . . Combat Hostiles . | . . . Parts Fried . | . . . Impact Corruptions . | . . . Robots Melted . | . . . Combat Hostiles . | . . . Parts Melted 3 | 1 2 . Heat Transferred 2183 | 259 1628 296 Parts Sabotaged . | . . . Parts Stolen . | . . . Parts Stripped . | . . . Power Chain Reactions . | . . . Alert | -11 -10 -10 ------- Run | Yrd Mat Sub Maximum Alert Level 1 | . 1 . Low Security (%) 95 | 100 95 . Level 1 4 | . 4 . Level 2 . | . . . Level 3 . | . . . Level 4 . | . . . Level 5 . | . . . High Security . | . . . Max Security . | . . . Peak Influence 226 | 5 226 . Initial . | . . . Average 128 | . 139 . Influence Increases 612 | 5 607 . Destroy 0b10 Robot/C 360 | . 360 . Destroy 0b10 Robot/NC 35 | 5 30 . Destroy Leader 84 | . 84 . Successful Hack 6 | . 6 . Disable Machine 75 | . 75 . Destroy Structure 7 | . 7 . Lose Combat Pursuer 45 | . 45 . Influence Decreases 612 | 5 482 125 Entered New Map 61 | . . 61 Time Decay 541 | 5 472 64 Lost Part 10 | . 10 . Squads Dispatched 5 | . 5 . Investigation 3 | . 3 . Extermination . | . . . Reinforcement 2 | . 2 . Assault . | . . . Garrison . | . . . Intercept . | . . . Searches Triggered . | . . . Construction Impeded . | . . . Haulers Reinforced . | . . . Active Scanning Responses . | . . . Cargo Convoy Interrupts . | . . . Stealth | -11 -10 -10 --------- Run | Yrd Mat Sub Distress Signals 7 | . 7 . Communications Jammed . | . . . Distress Signals . | . . . Times Spotted 28 | . 26 2 Peak Tracking Total 5 | . 5 2 Tactical Retreats 3 | . 3 . Traps | -11 -10 -10 ------- Run | Yrd Mat Sub Traps Triggered 3 | . 3 . Indirectly . | . . . Trap Hack Attempts . | . . . Triggered . | . . . Disarmed . | . . . Reprogrammed . | . . . Reused . | . . . Traps Extracted . | . . . Installed . | . . . Triggered . | . . . Machines | -11 -10 -10 ---------- Run | Yrd Mat Sub Machines Disabled 5 | . 5 . Max in Single Turn 4 | . 4 . Machines Repaired . | . . . Machines Dismantled . | . . . Machines Sabotaged . | . . . Overloaded Fab Kills . | . . . Hacking | -11 -10 -10 --------- Run | Yrd Mat Sub Machines Accessed 6 | . 6 . Terminals 6 | . 6 . Fabricators . | . . . Repair Stations . | . . . Recycling Units . | . . . Scanalyzers . | . . . Garrison Access . | . . . Total Hacks 16 | . 16 . Successful 3 | . 3 . Failed 13 | . 13 . Catastrophic 3 | . 3 . Database Lockouts . | . . . Manual 15 | . 15 . Terminals 16 | . 16 . Fabricators . | . . . Repair Stations . | . . . Recycling Units . | . . . Scanalyzers . | . . . Garrison Access . | . . . Terminal Hacks 1 | . 1 . Part Schematic 1 | . 1 . Fabricator Hacks . | . . . Repair Station Hacks . | . . . Recycling Unit Hacks . | . . . Scanalyzer . | . . . Garrison Access Hacks . | . . . Unauthorized Hacks 2 | . 2 . Terminals 2 | . 2 . Botnet 2 | . 2 . Fabricators . | . . . Repair Stations . | . . . Recycling Units . | . . . Scanalyzers . | . . . Garrison Access . | . . . Data Cores Recovered . | . . . Used . | . . . Hacking Detections 5 | . 5 . Full Trace Events 2 | . 2 . Feedback Events . | . . . Feedback Blocked . | . . . Robot Schematics Acquired . | . . . Robots Built . | . . . Authchips . | . . . Time . | . . . Total Robot Build Rating . | . . . Part Schematics Acquired 1 | . 1 . Parts Built . | . . . Authchips . | . . . Time . | . . . Total Part Build Rating . | . . . Part Studies Acquired . | . . . Parts Repaired . | . . . Time . | . . . Parts Recycled . | . . . Recycled Matter . | . . . Retrieved Matter . | . . . Retrieved Components . | . . . Parts Scanalyzed . | . . . Part Schematics Acquired . | . . . Parts Damaged . | . . . Bothacking | -11 -10 -10 ------------ Run | Yrd Mat Sub Used RIF Installer . | . . . Robots Hacked . | . . . Non-combat . | . . . Combat . | . . . Robot Hacks Applied . | . . . Relay Couplers Released . | . . . Fabnet Peak Effective % . | . . . Robots Rewired . | . . . Allies Hacked . | . . . Hacks Repelled . | . . . Allies | -11 -10 -10 -------- Run | Yrd Mat Sub Total Allies . | . . . Largest Group . | . . . Highest-Rated Group . | . . . Highest-Rated Ally . | . . . Total Orders . | . . . Ally Attacks . | . . . Total Damage . | . . . Kills . | . . . Allies Corrupted . | . . . Allies Melted . | . . . Intel | -11 -10 -10 ------- Run | Yrd Mat Sub Active Infowar (turns) . | . . . Robot Analysis Total . | . . . Derelict Logs Recovered . | . . . Drone Launches . | . . . Drone Recoveries . | . . . Exploration | -11 -10 -10 ------------- Run | Yrd Mat Sub Turns Passed 1524 | 112 1240 172 Spaces Moved 759 | 53 618 88 Core 4 | 4 . . Treads 755 | 49 618 88 Legs . | . . . Wheels . | . . . Hover . | . . . Flight . | . . . Fastest Speed 50 | 50 160 160 Average Speed 159 | 151 160 160 Slowest Speed 160 | 160 160 160 Overloaded Moves . | . . . Propulsion Burnouts . | . . . Robots Hopped . | . . . Potential Cave-ins . | . . . Cave-ins Triggered . | . . . Exploration Rate (%) 32 | 5 82 9 Regions Visited 2 Branch Regions 1 Pre-discovered Areas 1 | . . 1 Known Exits Taken . | . . . Unknown Exits Taken 2 | 1 1 . Scrap Searched . | . . . Spaces Dug . | . . . Terrain Destroyed 10 | . 10 . Melee . | . . . Projectile . | . . . AOE 10 | . 10 . Terrain Rammed . | . . . Walls Destroyed . | . . . Machines Disabled . | . . . Actions | -11 -10 -10 --------- Run | Yrd Mat Sub Total 923 | 71 749 103 Wait 56 | 1 50 5 Move 757 | 52 617 88 Hop . | . . . Pick Up 14 | 6 8 . Fast Attach 7 | 3 4 . Attach 7 | 2 5 . Detach . | . . . Swap 2 | 1 1 . Drop 3 | . 3 . Fire 76 | 6 60 10 Melee . | . . . Ram . | . . . Kick . | . . . Crush 1 | . 1 . Escape Stasis . | . . . Rewire . | . . . Trap . | . . . Miscellaneous . | . . . Route ------- -11/Scrapyard -10/Materials (discovered 5 exits: [*Mat x2] / [*Min x2] / [*Sub]) -10/Subcaves History --------- Turn | Location | Event 19 | -11/Scrapyard | Discovered new exit (range 14) 113 | -11/Scrapyard | Entered Materials 308 | -10/Materials | Build established: Mutant 311 | -10/Materials | Discovered new exit (range 7) 437 | -10/Materials | Discovered new exit (range 13) 900 | -10/Materials | Discovered new exit (range 13) 908 | -10/Materials | Discovered new exit (range 14) 1074 | -10/Materials | Core integrity fell below 50% 1297 | -10/Materials | Discovered new exit (range 6) 1353 | -10/Materials | Entered Subcaves 1425 | -10/Subcaves | Learned location of Zion (-6) 1425 | -10/Subcaves | Met a Zionite searching for "candidates" 1510 | -10/Subcaves | Core integrity fell below 20% 1525 | -10/Subcaves | Destroyed by QN-X54(R) with Subdweller Laser Last Messages --------------- reinforcements to Terminal M007. 01327_ O-16 Technician destroyed. 01331_ Acquired Hacking Suite. 01332_ Acquired 10 matter. 01351_ T-07 Excavator is excavating. LOCATION=UNKNOWN AMBIENT_HEAT=-10 GOAL=ESCAPE 01403_ RC-COJ(z): "She is not going to be happy we haven't found any suitable candidates yet." 01425_ RC-COJ(z): "Hey you! It's really dangerous down here, I feel that you could die at any moment. For your health and safety might I suggest a trip to Zion?" World map updated: -6/Zion. 01487_ 6O-FN4(R) suffers critical hit (Burn). 01495_ Lgt. Treads destroyed. 01505_ Heat Sink destroyed. 01512_ Med. Laser destroyed. [Achievement: I Think I Know What's Going On] Map ----- +----------------------------------------------------+ | | | | | | | ?????????????????????????????????????????????????? | | ?????????????????????????????????????????????????? | | ?????????????????????????????????????????????????? | | ?????????????????????????????????????????????????? | | ?????????????????????????????????????????????????? | | ?????????????????????????????????????????????????? | | ?????????????????????????????????????????????????? | | ?????????????????????????????????????????????????? | | ?????????????????????????????????????????????????? | | ?????????????????????????????????????????????????? | | ?????????????????????????????????????????????????? | | ?????????????????????????????????????????????????? | | ?????????????????????????????????????????????????? | | ?????????????????????????????????????????????????? | | ????????????????????????????????????????#####????? | | ?????????????????##?????######?????????## ##?### | | ???????????? ## ##### #?????????# ### | | ??????????? #????????## | | ??????????? ###???#### | | ??????????????## # ### ##### ## | | ?????????????????#?????##RR ### | | ????????????????????????# | | ????????????????????????#@######### | | ????????????????????????###???????##### # ## | | ??????????????????????????????????????# ##### | | ??????????????????????????????????????## #???# | | ???????????????????????????????????????## ???### | | ????????????????????????????????????????? ???? | | ?????????????????????????????????????????## ?? | | ???????????????????????????????????????????#?# # | | ????????????????????????????????????????????? # # | | ????????????????????????????????????????????###### | | ?????????????????????????????????????????????????? | | ?????????????????????????????????????????????????? | | ?????????????????????????????????????????????????? | | ?????????????????????????????????????????????????? | | ?????????????????????????????????????????????????? | | ?????????????????????????????????????????????????? | | ?????????????????????????????????????????????????? | | ?????????????????????????????????????????????????? | | ?????????????????????????????????????????????????? | | ?????????????????????????????????????????????????? | | ?????????????????????????????????????????????????? | | ?????????????????????????????????????????????????? | | ?????????????????????????????????????????????????? | | ?????????????????????????????????????????????????? | | ?????????????????????????????????????????????????? | +----------------------------------------------------+ Best States ------------- Heat Dissipation 35 Energy Generation 10 Energy Capacity 250 Matter Stores 300 Matter Capacity 300 Sight Range 16 Terrain Scan Density 10 Evasion (%) 40 Recoil Reduction 2 Item Schematics ----------------- Hcp. Storage Unit | -10/Materials | Hacked Robot Schematics ------------------ None Fabricated ------------ Nothing Repaired ---------- Nothing Studied --------- None Alien Tech Used ----------------- None Achievements -------------- I Think I Know What's Going On Challenges ------------ None Game ------ Seed FissionCompactLauncher Manual? 0 Play Time 00:10:22 Cumulative 98.1 hours Start 2026.07.08 @ 23:42:34 End 2026.07.08 @ 23:52:14 Sessions 1 Manual Loads 0 Difficulty Rogue Special Mode None Game No. 49 Rogue 49 Adventurer 0 Explorer 0 Win Type - Total 2 Types 2/0/0/0/0/0/0/0/0/0 Lore% 51 Gallery% 51 Achievement% 49 Wizard Run 0 Options --------- Layout 1 ASCII 0 Keyboard 0 Movement Numpad Keybinds 0 Fullscreen 1 Font 24/Smallcaps Map View 50x35 Zoom Use 0% Tactical HUD 1 Map Filters NONE Filters NONE Steam 1 RUN: 3563d688-51cb-4776-b686-3c0385e6dff0